bitfinex/quotes_SOLUSD_20260220
["timestamp","ask_amount","ask_price","bid_price","bid_amount"]
[1771615199369,0.2,84.94,84.911,4.20884832]
[1771615199556,0.2,84.94,84.913,4.20884832]
[1771615200675,0.2,84.94,84.919,4.20884832]
[1771615200863,0.2,84.94,84.922,0.14216157]
[1771615201061,97.15989159,84.95,84.928,4.20884832]
[1771615201270,4.30457534,84.995,84.938,4.20884832]
[1771615201575,4.30457534,85.008,84.955,4.20884832]
[1771615201776,11.76346033,85.009,84.935,4.20884832]
[1771615201777,4.30457534,84.989,84.935,4.20884832]
[1771615201952,4.30457534,84.989,84.943,4.20884832]
[1771615202155,4.30457534,84.989,84.953,4.20884832]
[1771615203074,4.30457534,84.989,84.944,0.14216157]
[1771615203075,4.30457534,84.987,84.954,15.97992443]
[1771615203255,4.30457534,84.987,84.954,11.77107611]
[1771615203454,4.30457534,84.987,84.95,11.77159846]
[1771615203674,4.30457534,84.979,84.932,4.20884832]
[1771615204262,4.30457534,84.979,84.936,4.20884832]
[1771615204474,4.30457534,84.979,84.939,4.20884832]
[1771615205474,4.30457534,84.977,84.939,4.20884832]
[1771615205674,11.42160753,84.96,84.925,11.77509567]
[1771615205857,4.30457534,84.959,84.893,3.69383402]
[1771615206056,4.30457534,84.939,84.894,4.20884832]
[1771615206555,4.30457534,84.939,84.9,4.20884832]
[1771615206761,4.30457534,84.939,84.902,4.20884832]
[1771615207691,4.41436524,84.937,84.904,4.32504416]
[1771615209379,4.41436524,84.937,84.888,3.69383402]
[1771615209380,4.41436524,84.937,84.895,4.32504416]
[1771615210286,4.41436524,84.929,84.878,4.32504416]
[1771615210458,4.41436524,84.919,84.881,0.14216157]
[1771615210659,4.41436524,84.909,84.88,4.32504416]
[1771615211193,4.41436524,84.909,84.882,4.32504416]
[1771615211557,4.41436524,84.909,84.873,4.32504416]
[1771615212187,11.77745324,84.908,84.874,11.78217121]
[1771615212389,11.77745324,84.908,84.875,4.32504416]
[1771615213169,16.19181848,84.908,84.875,4.32504416]
[1771615214770,4.41436524,84.929,84.879,4.32504416]
[1771615214976,4.41436524,84.929,84.883,4.32504416]
[1771615215573,4.41436524,84.939,84.887,4.32504416]
[1771615216085,4.41436524,84.939,84.893,4.32504416]
[1771615216290,41.20507175,84.941,84.897,4.32504416]
[1771615216291,11.77287764,84.941,84.897,4.32504416]
[1771615216588,11.77287764,84.941,84.903,4.32504416]
[1771615216966,4.41436524,84.945,84.905,4.32504416]
[1771615218267,4.41436524,84.939,84.889,4.32504416]
[1771615218467,11.42160753,84.92,84.885,11.7806031]
[1771615218883,11.77592764,84.919,84.885,11.7806031]
[1771615219061,4.41436524,84.918,84.885,11.7806031]
[1771615220190,11.42160753,84.92,84.885,4.32504416]
[1771615220191,4.41436524,84.916,84.885,4.32504416]
[1771615221765,4.41436524,84.916,84.887,4.32504416]
[1771615223081,11.77648236,84.915,84.887,4.32504416]
[1771615223289,4.41436524,84.909,84.868,4.32504416]
[1771615223463,4.41436524,84.909,84.872,4.32504416]
[1771615223663,4.41436524,84.917,84.874,4.32504416]
[1771615223864,4.41436524,84.915,84.88,4.32504416]
[1771615224065,4.41436524,84.915,84.882,4.32504416]
[1771615224285,4.41436524,84.909,84.858,4.32504416]
[1771615224590,4.41436524,84.909,84.862,4.32504416]
[1771615224887,4.41436524,84.915,84.882,4.32504416]
[1771615226081,4.41436524,84.915,84.884,4.32504416]
[1771615226789,11.42160753,84.9,84.863,4.32504416]
[1771615226961,11.42160753,84.91,84.863,4.32504416]
[1771615227476,4.41436524,84.909,84.863,4.32504416]
[1771615228173,4.41436524,84.907,84.865,4.32504416]
[1771615229876,41.22205732,84.906,84.866,11.78328187]
[1771615230080,4.41436524,84.899,84.866,11.78328187]
[1771615230686,4.41436524,84.899,84.86,11.78399655]
[1771615231280,4.41436524,84.899,84.861,4.32504416]
[1771615232695,4.41436524,84.897,84.856,11.78458757]
[1771615232883,4.41436524,84.897,84.857,4.32504416]
[1771615233893,11.77911797,84.896,84.859,4.32504416]
[1771615234091,16.19348321,84.896,84.859,4.32504416]
[1771615234403,4.41436524,84.895,84.859,4.32504416]
[1771615234902,11.77911797,84.896,84.861,4.32504416]
[1771615235104,97.15989159,84.905,84.868,0.14216157]
[1771615235392,97.15989159,84.905,84.873,4.32504416]
[1771615235578,113.35219415,84.905,84.873,4.32504416]
[1771615236800,16.19230256,84.905,84.875,4.32504416]
[1771615238182,4.30557239,84.904,84.875,4.32504416]
[1771615239292,4.30557239,84.904,84.876,11.78189358]
[1771615239493,4.30557239,84.902,84.877,4.42356574]
[1771615240500,4.30557239,84.902,84.876,11.78189358]
[1771615241286,4.30557239,84.902,84.876,4.42356574]
[1771615241495,4.30557239,84.91,84.876,4.42356574]
[1771615242702,4.30557239,84.909,84.876,4.42356574]
[1771615242916,41.21964764,84.911,84.865,11.78342072]
[1771615242917,4.30557239,84.899,84.865,11.78342072]
[1771615244793,4.30557239,84.897,84.865,4.42356574]
[1771615246208,4.30557239,84.889,84.845,4.42356574]
[1771615246406,4.30557239,84.889,84.846,0.14216157]
[1771615246712,4.30557239,84.889,84.829,5.36086188]
[1771615246713,4.30557239,84.879,84.838,4.42356574]
[1771615247008,4.30557239,84.877,84.838,4.42356574]
[1771615247234,4.30557239,84.869,84.838,4.42356574]
[1771615248510,4.30557239,84.867,84.838,16.21068343]
[1771615249016,4.30557239,84.867,84.831,4.42356574]
[1771615249923,4.30557239,84.867,84.832,4.42356574]
[1771615250605,4.30557239,84.865,84.834,4.42356574]
[1771615251886,4.30557239,84.865,84.836,4.42356574]
[1771615253014,11.78205174,84.875,84.836,4.42356574]
[1771615253219,126.61064821,84.888,84.838,4.42356574]
[1771615253515,11.77787142,84.905,84.86,4.42356574]
[1771615253692,97.15989159,84.907,84.872,4.42356574]
[1771615253890,97.15989159,84.907,84.874,4.42356574]
[1771615254212,11.77695799,84.912,84.874,4.42356574]
[1771615254587,4.30557239,84.928,84.878,4.42356574]
[1771615254805,47.06869227,84.983,84.888,4.42356574]
[1771615254806,16.07872724,84.939,84.888,4.42356574]
[1771615255005,4.30557239,84.938,84.892,4.42356574]
[1771615255896,4.30557239,84.929,84.892,4.42356574]
[1771615256098,4.27144222,84.93,84.894,4.42356574]
[1771615256099,4.30557239,84.927,84.894,4.42356574]
[1771615257119,4.30557239,84.927,84.896,4.42356574]
[1771615257903,4.30557239,84.939,84.896,4.42356574]
[1771615258107,4.30557239,84.938,84.896,4.42356574]
[1771615259004,4.30557239,84.945,84.909,0.14216157]
[1771615259213,4.30557239,84.945,84.912,4.42356574]
[1771615260219,4.30557239,84.96,84.914,4.42356574]
[1771615260528,11.7689981,84.969,84.922,4.42356574]
[1771615260529,4.30557239,84.968,84.922,4.42356574]
[1771615261213,11.76927513,84.967,84.926,4.42356574]
[1771615261418,4.30557239,84.973,84.934,4.42356574]
[1771615261720,4.30557239,84.999,84.935,4.42356574]
[1771615261917,29.40583573,85.018,84.934,0.14216157]
[1771615261918,4.30557239,84.989,84.942,4.42356574]
[1771615262119,4.27144222,84.99,84.933,3.69383402]
[1771615262120,4.30557239,84.999,84.952,4.42356574]
[1771615262722,4.30557239,84.999,84.962,4.42356574]
[1771615263104,11.7649827,84.998,84.963,11.76982921]
[1771615263423,16.07055509,84.998,84.964,4.42356574]
[1771615263601,4.30557239,84.997,84.964,4.42356574]
[1771615265129,4.30557239,84.977,84.934,4.42356574]
[1771615265302,4.30557239,84.977,84.939,0.14216157]
[1771615265506,4.30557239,84.999,84.952,4.42356574]
[1771615266422,4.30557239,84.989,84.944,4.56572731]
[1771615267029,0.2,85.02,84.944,4.56572731]
[1771615267328,0.2,85.02,84.959,4.07369799]
[1771615267529,0.2,85.02,84.98,4.35802113]
[1771615267709,0.2,85.02,84.982,4.07369799]
[1771615268824,0.2,85.02,84.992,4.07369799]
[1771615269525,0.2,85.02,84.994,4.07369799]
[1771615271525,0.2,85.02,84.996,4.07369799]
[1771615272135,0.2,85.03,85.002,0.14216157]
[1771615272339,0.2,85.03,85.0,0.28432314]
[1771615272340,0.2,85.04,85.017,0.14216157]
[1771615272523,0.2,85.04,85.022,4.07369799]
[1771615273204,0.2,85.05,85.023,4.07369799]
[1771615273433,0.2,85.05,85.025,4.07369799]
[1771615273621,0.2,85.06,85.024,11.76138502]
[1771615273622,0.2,85.06,85.028,4.07369799]
[1771615273829,0.2,85.06,85.032,4.07369799]
[1771615274626,4.39133781,85.06,85.032,4.07369799]
[1771615275235,4.19133781,85.058,85.024,4.07369799]
[1771615275426,4.19133781,85.056,85.012,4.07369799]
[1771615275736,0.2,85.06,84.999,11.76484429]
[1771615275737,0.2,85.06,85.022,4.07369799]
[1771615275942,11.75654545,85.059,85.022,4.07369799]
[1771615276245,4.19133781,85.058,85.013,4.07369799]
[1771615276412,4.19133781,85.049,85.005,4.07369799]
[1771615276612,4.19133781,85.039,84.996,4.07369799]
[1771615276829,4.19133781,85.039,84.992,11.76576374]
[1771615277332,4.19133781,85.039,84.993,4.07369799]
[1771615277635,4.19133781,85.037,84.995,4.07369799]
[1771615279737,4.19133781,85.035,84.996,15.83895753]
[1771615279937,41.15903852,85.036,84.78,44.93954044]
[1771615279938,4.19133781,85.029,84.975,4.07369799]
[1771615280135,4.19133781,85.019,84.976,4.07369799]
[1771615280315,4.19133781,85.019,84.982,4.07369799]
[1771615282419,4.19133781,85.017,84.982,4.07369799]
[1771615282620,4.19133781,85.017,84.975,11.7681671]
[1771615282837,4.19133781,85.017,84.975,15.84186509]
[1771615283242,4.19133781,85.009,84.975,15.84186509]
[1771615283940,4.19133781,85.009,84.951,3.69383402]
[1771615283941,4.19133781,85.009,84.966,4.07369799]
[1771615284243,4.19133781,84.989,84.958,4.07369799]
[1771615284540,4.19133781,84.987,84.958,4.07369799]
[1771615284760,4.19133781,84.987,84.956,11.77067911]
[1771615284938,4.19133781,84.987,84.949,4.07369799]
[1771615285241,4.19133781,84.987,84.951,4.07369799]
[1771615285619,4.19133781,84.987,84.942,29.43153483]
[1771615285620,11.40509034,84.98,84.942,4.07369799]
[1771615285823,4.19133781,84.979,84.942,4.07369799]
[1771615286041,4.19133781,84.979,84.944,4.07369799]
[1771615286423,4.19133781,84.969,84.928,4.07369799]
[1771615287022,4.19133781,84.969,84.929,0.14216157]
[1771615287333,4.19133781,84.969,84.932,4.07369799]
[1771615288342,4.19133781,84.969,84.927,11.77481837]
[1771615288527,4.19133781,84.957,84.927,11.77481837]
[1771615289240,4.19133781,84.957,84.927,15.84851636]
[1771615290141,4.19133781,84.957,84.928,4.07369799]
[1771615291854,15.96213681,84.956,84.928,4.07369799]
[1771615292150,15.96213681,84.956,84.93,4.07369799]
[1771615292452,4.19133781,84.967,84.932,4.07369799]
[1771615293849,4.19133781,84.965,84.924,4.07369799]
[1771615295946,4.19133781,84.963,84.926,4.07369799]
[1771615299151,4.43816352,84.961,84.928,4.38849272]
[1771615300644,4.43816352,84.959,84.927,11.77481837]
[1771615301335,4.43816352,84.957,84.927,11.77481837]
[1771615301531,4.43816352,84.949,84.915,11.77648236]
[1771615302236,4.43816352,84.949,84.915,16.16497508]
[1771615302636,4.43816352,84.939,84.909,11.77720396]
[1771615303133,4.43816352,84.939,84.907,4.38849272]
[1771615303337,4.43816352,84.937,84.909,4.38849272]
[1771615304158,4.43816352,84.929,84.892,4.38849272]
[1771615304853,4.43816352,84.919,84.883,4.38849272]
[1771615305764,4.43816352,84.917,84.885,4.38849272]
[1771615307954,4.43816352,84.915,84.887,4.38849272]
[1771615309330,4.43816352,84.915,84.886,11.78050561]
[1771615309331,101.59805511,84.945,84.895,4.38849272]
[1771615309532,11.77297279,84.941,84.898,0.14216157]
[1771615309763,11.77297279,84.941,84.903,4.38849272]
[1771615310335,11.77297279,84.941,84.905,4.38849272]
[1771615311358,16.21113631,84.941,84.905,4.38849272]
[1771615311561,4.43816352,84.94,84.905,4.38849272]
[1771615312650,4.43816352,84.938,84.907,4.38849272]
[1771615312955,4.43816352,84.938,84.906,11.77773066]
[1771615313166,4.43816352,84.938,84.9,4.38849272]
[1771615314137,4.43816352,84.929,84.9,4.38849272]
[1771615314856,4.43816352,84.927,84.9,4.38849272]
[1771615315058,4.43816352,84.927,84.893,4.38849272]
[1771615318153,41.21137904,84.928,84.873,3.69383402]
[1771615318154,11.77467972,84.928,84.895,4.38849272]
[1771615319550,4.43816352,84.932,84.897,4.38849272]
[1771615320252,97.15989159,84.954,84.904,0.14216157]
[1771615320448,11.7705219,84.958,84.916,4.38849272]
[1771615320645,11.7705219,84.958,84.922,4.38849272]
[1771615321542,4.43816352,84.949,84.904,4.38849272]
[1771615321746,4.43816352,84.939,84.904,16.16645073]
[1771615321942,4.43816352,84.939,84.905,4.38849272]
[1771615323670,4.43816352,84.938,84.907,4.38849272]
[1771615324871,4.43816352,84.968,84.912,0.28432314]
[1771615325072,3.63847277,84.976,84.92,4.67281586]
[1771615325250,3.63847277,84.976,84.928,4.38849272]
[1771615325569,3.63847277,84.976,84.942,4.38849272]
[1771615325874,4.43816352,84.974,84.944,4.38849272]
[1771615327148,4.43816352,84.974,84.939,11.77305989]
[1771615328649,4.01046706,84.972,84.939,4.09301232]
[1771615331569,4.01046706,84.97,84.94,15.86602856]
[1771615332763,4.01046706,84.97,84.941,4.09301232]
[1771615333370,11.76872109,84.971,84.941,4.09301232]
[1771615334752,4.01046706,84.974,84.943,4.09301232]
[1771615335067,4.01046706,84.974,84.93,29.43583877]
[1771615335253,4.01046706,84.974,84.912,3.97815716]
[1771615335254,4.01046706,84.969,84.932,0.14216157]
[1771615335453,4.01046706,84.969,84.931,11.77426381]
[1771615335660,4.01046706,84.969,84.932,4.09301232]
[1771615336050,11.7681671,84.975,84.932,4.09301232]
[1771615336670,101.17035865,84.976,84.934,4.09301232]
[1771615336966,4.01046706,84.991,84.947,0.14216157]
[1771615337288,4.01046706,84.991,84.952,4.09301232]
[1771615338561,4.01046706,84.989,84.954,4.09301232]
[1771615338759,4.01046706,84.989,84.937,4.09301232]
[1771615339061,4.01046706,84.979,84.942,4.09301232]
[1771615339558,4.01046706,84.969,84.919,0.28432314]
[1771615339875,4.01046706,84.969,84.929,4.09301232]
[1771615340774,4.01046706,84.967,84.929,4.09301232]
[1771615340979,4.01046706,84.967,84.93,11.77440244]
[1771615342175,4.01046706,84.959,84.92,4.09301232]
[1771615342365,4.01046706,84.949,84.912,4.09301232]
[1771615342770,4.01046706,84.947,84.913,4.09301232]
[1771615342966,4.01046706,84.939,84.897,4.09301232]
[1771615343167,41.2016763,84.948,84.897,4.09301232]
[1771615343168,4.01046706,84.929,84.898,4.09301232]
[1771615343356,4.01046706,84.919,84.89,4.09301232]
[1771615343559,4.01046706,84.929,84.892,4.09301232]
[1771615344575,4.01046706,84.927,84.894,4.09301232]
[1771615344955,4.01046706,84.98,84.897,0.86585088]
[1771615345157,4.01046706,84.98,84.914,6.36887433]
[1771615345380,4.01046706,84.98,84.935,0.86585088]
[1771615345577,4.01046706,84.98,84.943,0.86199862]
[1771615346161,4.01046706,84.978,84.934,0.86199862]
[1771615346357,4.01046706,84.978,84.92,0.86199862]
[1771615346573,4.01046706,84.976,84.93,0.85819721]
[1771615346960,4.01046706,84.976,84.929,11.91670265]
[1771615347160,4.01046706,84.976,84.93,0.14216157]
[1771615348060,4.01046706,84.976,84.929,11.77454108]
[1771615349476,4.01046706,84.974,84.93,0.98920078]
[1771615349872,4.01046706,84.974,84.92,11.77578897]
[1771615350065,4.01046706,84.974,84.922,0.14216157]
[1771615350265,4.01046706,84.974,84.922,0.98920078]
[1771615350480,4.01046706,84.974,84.931,0.14216157]
[1771615350664,4.01046706,84.974,84.932,0.84340254]
[1771615352567,4.01046706,84.972,84.934,0.83623637]
[1771615355389,4.01046706,84.97,84.935,11.7737093]
[1771615359687,97.15989159,84.989,84.928,29.43636057]
[1771615359688,3.7687258,84.988,84.94,0.80927]
[1771615359878,3.7687258,84.988,84.952,0.80927]
[1771615360483,3.7687258,84.987,84.944,0.80603698]
[1771615360685,3.7687258,84.985,84.932,0.80603698]
[1771615361080,3.7687258,84.979,84.932,0.80603698]
[1771615361269,3.7687258,84.979,84.929,0.14216157]
[1771615361673,3.7687258,84.977,84.933,0.8028652]
[1771615363565,3.7687258,84.975,84.935,0.79658561]
[1771615367995,3.7687258,84.973,84.936,11.77357068]
[1771615368573,3.7687258,84.973,84.937,0.78155005]
[1771615369892,3.7687258,84.979,84.941,0.77865449]
[1771615370083,3.7687258,84.979,84.943,0.77865449]
[1771615370281,3.7687258,84.997,84.951,0.77865449]
[1771615370485,3.7687258,85.018,84.961,0.77577788]
[1771615370687,3.7687258,85.018,84.977,0.77577788]
[1771615370883,3.7687258,85.018,84.982,0.77577788]
[1771615371281,3.7687258,85.018,84.961,3.69383402]
[1771615371282,3.7687258,85.018,84.984,0.77577788]
[1771615371705,3.7687258,85.037,84.996,0.77293182]
[1771615371880,3.7687258,85.037,85.002,0.77293182]
[1771615372080,3.7687258,85.019,84.957,0.77293182]
[1771615372297,3.7687258,84.999,84.959,0.77293182]
[1771615372698,3.7687258,84.999,84.96,0.7701541]
[1771615373088,3.7687258,84.999,84.961,0.91231567]
[1771615373600,3.7687258,84.997,84.961,0.14216157]
[1771615376699,29.40972652,85.006,84.954,0.28432314]
[1771615376700,3.7687258,84.995,84.957,0.75937189]
[1771615376880,3.7687258,84.995,84.958,0.14216157]
[1771615377685,11.76525954,84.996,84.955,11.77093755]
[1771615377686,3.7687258,84.989,84.955,11.77093755]
[1771615378906,3.7687258,84.987,84.952,0.14216157]
[1771615380805,3.7687258,84.977,84.939,0.14216157]
[1771615380988,3.7687258,84.977,84.939,0.89121256]
[1771615381903,3.7687258,84.969,84.931,12.52082415]
[1771615382109,3.7687258,84.969,84.932,0.88872191]
[1771615382811,41.18810015,84.976,84.932,0.88872191]
[1771615382812,15.53675441,84.976,84.942,0.74408244]
[1771615383192,3.7687258,84.975,84.942,0.74408244]
[1771615384004,3.7687258,84.975,84.943,11.77260044]
[1771615384308,3.7687258,84.973,84.943,11.77260044]
[1771615384683,3.7687258,84.973,84.944,0.73921869]
[1771615385299,3.7687258,84.973,84.943,11.77260044]
[1771615386409,3.7687258,84.971,84.938,11.91545503]
[1771615386614,3.7687258,84.971,84.943,0.73217606]
[1771615387604,11.40739199,84.97,84.938,11.77329346]
[1771615387803,3.89685586,84.969,84.938,11.77329346]
[1771615388807,3.89685586,84.967,84.927,0.72532576]
[1771615389111,11.40739199,84.96,84.914,1.0096489]
[1771615389312,3.89685586,84.959,84.921,0.86748733]
[1771615391815,3.89685586,84.957,84.921,0.86748733]
[1771615394510,3.89685586,84.955,84.921,0.86748733]
[1771615397421,3.89685586,84.955,84.888,62.2]
[1771615397422,3.89685586,84.955,84.913,0.67223622]
[1771615397623,3.89685586,84.955,84.813,103.31464879]
[1771615397624,3.89685586,84.939,84.902,0.66145788]
[1771615398337,3.89685586,84.939,84.904,0.66145788]
[1771615399600,3.89685586,84.939,84.903,0.28432314]
[1771615399601,3.89685586,84.939,84.91,0.64024886]
[1771615400223,3.89685586,84.939,84.885,3.69383402]
[1771615400224,3.89685586,84.939,84.905,0.14216157]
[1771615400407,3.89685586,84.939,84.905,0.78241043]
[1771615419523,3.69269134,84.937,84.89,0.42648471]
[1771615419722,3.69269134,84.937,84.895,0.44500598]
[1771615424226,3.69269134,84.935,84.895,0.44500598]
[1771615426033,97.15989159,84.954,84.891,0.28432314]
[1771615426034,4.26257831,84.93,84.891,0.28432314]
[1771615426238,3.69269134,84.919,84.875,0.39738911]
[1771615426416,3.69269134,84.909,84.859,0.39738911]
[1771615426616,3.69269134,84.909,84.864,0.28432314]
[1771615426915,3.69269134,84.899,84.852,0.38979559]
[1771615427120,3.69269134,84.899,84.854,0.38979559]
[1771615428019,3.69269134,84.899,84.864,0.38227802]
[1771615430136,3.69269134,84.899,84.866,0.50967128]
[1771615430440,3.69269134,84.897,84.866,0.50967128]
[1771615431127,3.69269134,84.897,84.865,11.78342072]
[1771615432540,4.26257831,84.9,84.853,29.46243771]
[1771615432541,3.69269134,84.895,84.856,0.35312557]
[1771615432738,3.69269134,84.895,84.859,0.28432314]
[1771615432921,3.69269134,84.907,84.864,0.34604583]
[1771615433117,3.69269134,84.907,84.858,0.14216157]
[1771615433118,3.69269134,84.907,84.874,0.34604583]
[1771615433439,3.69269134,84.913,84.884,0.34604583]
[1771615434439,3.69269134,84.911,84.885,11.7806444]
[1771615435245,3.69269134,84.911,84.858,5.36086188]
[1771615435246,3.69269134,84.911,84.869,3.69383402]
[1771615435646,3.69269134,84.911,84.87,0.14216157]
[1771615435945,3.69269134,84.911,84.87,0.46739914]
[1771615436245,3.69269134,84.911,84.871,0.32523757]
[1771615436744,3.69269134,84.911,84.875,0.31851148]
[1771615438744,3.69269134,84.91,84.877,0.14216157]
[1771615439327,3.69269134,84.91,84.876,11.78189358]
[1771615440844,3.69269134,84.908,84.875,0.29221216]
[1771615441350,3.69269134,84.908,84.874,29.45517074]
[1771615442541,3.69269134,84.908,84.876,0.27953148]
[1771615442746,3.69269134,84.919,84.885,0.27953148]
[1771615442930,3.69269134,84.919,84.887,0.14216157]
[1771615443328,3.69269134,84.927,84.894,0.27953148]
[1771615444033,3.69269134,84.927,84.888,0.28432314]
[1771615444235,3.69269134,84.927,84.889,0.14216157]
[1771615444532,3.69269134,84.927,84.89,0.26717434]
[1771615444737,3.69269134,84.927,84.894,0.26717434]
[1771615444933,3.69269134,84.927,84.896,0.14216157]
[1771615446045,3.69269134,84.927,84.897,0.26107661]
[1771615446752,3.69269134,84.927,84.896,0.14216157]
[1771615447540,3.69269134,84.927,84.897,0.24322558]
[1771615448450,3.69269134,84.927,84.899,0.23161921]
[1771615448628,3.69269134,84.937,84.904,0.23161921]
[1771615449332,3.69269134,84.937,84.899,0.42648471]
[1771615449877,3.69269134,84.937,84.899,0.14216157]
[1771615450028,3.69269134,84.929,84.899,0.14216157]
[1771615450428,3.69269134,84.929,84.9,0.22593004]
[1771615450638,3.69269134,84.929,84.899,0.14216157]
[1771615453256,3.69269134,84.929,84.895,0.14216157]
[1771615454154,3.69269134,84.928,84.895,0.14216157]
[1771615454449,3.69269134,84.928,84.894,11.77939548]
[1771615455444,11.77481837,84.927,84.884,29.45184832]
[1771615455648,3.69269134,84.926,84.885,0.14216157]
[1771615458148,3.69269134,84.924,84.884,0.09850692]
[1771615458861,3.69269134,84.924,84.88,0.50358023]
[1771615459536,3.69269134,84.922,84.882,0.42648471]
[1771615460038,3.69269134,84.922,84.882,0.48242797]
[1771615461449,3.69269134,84.922,84.884,0.42648471]
[1771615462128,11.77565031,84.921,84.884,0.14216157]
[1771615462334,3.69269134,84.919,84.883,11.78092197]
[1771615463149,3.69269134,84.919,84.883,41.2332269]
[1771615463453,3.69269134,84.925,84.884,0.28432314]
[1771615463955,3.69269134,84.925,84.879,0.14216157]
[1771615463956,3.69269134,84.933,84.883,0.28432314]
[1771615464158,3.69269134,84.933,84.885,0.14216157]
[1771615466354,3.69269134,84.933,84.887,0.14216157]
[1771615468256,3.69269134,84.933,84.889,0.14216157]
[1771615470059,4.26562187,84.94,84.889,0.14216157]
[1771615470060,3.69269134,84.929,84.889,0.14216157]
[1771615470362,3.69269134,84.927,84.877,5.36086188]
[1771615470570,3.69269134,84.927,84.878,0.42648471]
[1771615473659,3.69269134,84.925,84.88,0.42648471]
[1771615476136,3.69269134,84.919,84.882,0.42648471]
[1771615479362,3.69269134,84.919,84.884,0.42648471]
[1771615479558,3.69269134,84.917,84.883,11.78092197]
[1771615482152,97.15989159,84.941,84.858,5.78734659]
[1771615482153,3.69269134,84.909,84.858,5.78734659]
[1771615482950,3.69269134,84.909,84.858,0.42648471]
[1771615483370,3.69269134,84.907,84.86,0.42648471]
[1771615484065,3.69269134,84.899,84.86,0.14216157]
[1771615484250,3.69269134,84.889,84.854,11.78485079]
[1771615484881,3.69269134,84.879,84.842,11.78661511]
[1771615485169,3.69269134,84.879,84.843,0.42648471]
[1771615485469,3.69269134,84.879,84.845,0.14216157]
[1771615486048,3.69269134,84.879,84.844,41.25218046]
[1771615486246,3.69269134,84.879,84.845,0.14216157]
[1771615487865,3.69269134,84.877,84.845,0.14216157]
[1771615494454,58.88313141,84.914,84.844,41.25218046]
[1771615494455,3.69269134,84.909,84.85,5.64518502]
[1771615494760,3.69269134,84.909,84.851,0.14216157]
[1771615495279,3.69269134,84.889,84.851,0.14216157]
[1771615499679,3.69269134,84.888,84.852,0.42648471]
[1771615501287,3.69269134,84.908,84.856,0.28432314]
[1771615501598,3.69269134,84.908,84.858,0.42648471]
[1771615501759,3.69269134,84.908,84.861,0.14216157]
[1771615502764,3.69269134,84.906,84.861,0.14216157]
[1771615503281,3.69269134,84.899,84.859,41.24488856]
[1771615503470,3.69269134,84.889,84.841,11.78675404]
[1771615503781,3.69269134,84.889,84.838,29.4677322]
[1771615503782,11.78161596,84.878,84.842,0.42648471]
[1771615503983,3.69269134,84.877,84.842,0.42648471]
[1771615504578,3.69269134,84.869,84.832,11.78800452]
[1771615504782,3.69269134,84.859,84.822,0.42648471]
[1771615504970,3.69269134,84.859,84.821,11.78953325]
[1771615505772,3.69269134,84.849,84.821,11.78953325]
[1771615505968,3.69269134,84.849,84.76,140.1]
[1771615505969,3.69269134,84.847,84.81,12.01637675]
[1771615506272,3.64269134,84.829,84.81,0.1]
[1771615506476,3.64269134,84.829,84.78,29.48796665]
[1771615506679,3.64269134,84.819,84.777,11.79554643]
[1771615506993,4.2694421,84.84,84.76,0.1]
[1771615506994,3.59269134,84.799,84.76,0.1]
[1771615507166,4.2694421,84.82,84.771,11.796487]
[1771615507486,4.2694421,84.82,84.772,0.42648471]
[1771615508488,11.78981124,84.819,84.774,0.42648471]
[1771615509371,3.37161056,84.809,84.767,0.14216157]
[1771615509565,3.37161056,84.809,84.77,11.89657289]
[1771615510582,3.37161056,84.807,84.77,0.1]
[1771615511170,3.37161056,84.799,84.77,0.1]
[1771615512087,3.37161056,84.806,84.77,0.1]
[1771615512284,3.37161056,84.814,84.77,0.38432314]
[1771615512979,3.37161056,84.814,84.774,0.28432314]
[1771615513368,3.37161056,84.814,84.776,0.28432314]
[1771615513688,3.37161056,84.824,84.778,0.42648471]
[1771615515494,3.37161056,84.823,84.78,0.42648471]
[1771615515677,3.37161056,84.819,84.779,11.79537385]
[1771615516481,3.37161056,84.819,84.78,0.14216157]
[1771615518285,11.78995024,84.818,84.78,0.14216157]
[1771615518499,3.37161056,84.817,84.77,0.38432314]
[1771615520775,3.37161056,84.815,84.772,0.42648471]
[1771615523392,3.37161056,84.813,84.774,0.42648471]
[1771615525281,3.37161056,84.811,84.776,0.14216157]
[1771615527502,3.37161056,84.809,84.771,0.28432314]
[1771615528897,3.37161056,84.809,84.77,0.1]
[1771615529801,3.37161056,84.807,84.77,0.1]
[1771615531185,3.37161056,84.799,84.77,0.1]
[1771615531582,41.27455836,84.798,84.77,0.1]
[1771615531884,3.37161056,84.797,84.77,0.1]
[1771615533703,3.37161056,84.808,84.77,0.1]
[1771615533900,3.37161056,84.807,84.77,0.1]
[1771615536093,97.15989159,84.809,84.77,0.1]
[1771615536094,3.37161056,84.805,84.77,0.1]
[1771615537586,3.37161056,84.813,84.77,0.1]
[1771615538212,3.37161056,84.822,84.772,0.28432314]
[1771615538507,3.37161056,84.822,84.776,0.28432314]
[1771615538698,3.37161056,84.822,84.778,0.42648471]
[1771615539113,3.37161056,84.819,84.778,0.14216157]
[1771615539496,11.78875076,84.827,84.77,0.38432314]
[1771615539497,3.37161056,84.809,84.77,0.1]
[1771615539692,3.37161056,84.809,84.77,0.24216157]
[1771615539896,3.37161056,84.809,84.77,0.1]